bitfinex/quotes_ETHUSD_20251117
["timestamp","ask_amount","ask_price","bid_price","bid_amount"]
[1763391198353,0.77435812,3182.2,3179.4,0.05]
[1763391198559,0.1916,3180.2,3179.4,0.05]
[1763391199057,0.405504,3179.7,3178.1,0.005]
[1763391199273,0.405504,3178.1,3177.1,0.005]
[1763391199617,0.405504,3178.1,3173.5,0.5185]
[1763391199618,8.14908523,3177.2,3173.5,0.5185]
[1763391199814,0.90699264,3176.5,3173.5,0.7144]
[1763391200019,7.65149711,3177.1,3174.1,0.4735]
[1763391200261,0.405504,3176.9,3174.1,0.4735]
[1763391200616,1.31249664,3176.4,3174.1,0.005]
[1763391200966,6.83658859,3177.9,3174.1,0.005]
[1763391201187,0.405504,3177.2,3175.2,0.4685]
[1763391201318,0.4668,3177.3,3174.4,0.4685]
[1763391201674,0.09999999,3179.0,3174.1,0.005]
[1763391201675,0.4668,3178.7,3175.4,1.31249664]
[1763391201816,0.4668,3178.7,3175.5,0.81490852]
[1763391202162,0.405504,3177.4,3175.1,0.005]
[1763391202462,1.31249664,3176.9,3175.1,0.005]
[1763391202663,0.4668,3177.3,3175.1,0.005]
[1763391202830,0.405504,3177.5,3175.1,0.005]
[1763391203185,1.31249664,3177.0,3175.1,0.005]
[1763391203477,0.405504,3176.8,3175.1,0.005]
[1763391203765,0.4668,3177.5,3175.1,0.005]
[1763391203989,0.005,3177.9,3175.1,0.005]
[1763391204117,0.4668,3177.5,3175.2,0.4685]
[1763391204319,0.4668,3177.5,3175.3,0.405504]
[1763391204517,0.005,3177.9,3175.5,0.405504]
[1763391204719,0.4668,3177.8,3175.5,0.405504]
[1763391204916,0.4668,3177.8,3175.1,0.91199264]
[1763391204917,0.4668,3177.8,3175.6,0.4685]
[1763391205217,0.4668,3177.7,3175.6,0.4685]
[1763391205421,0.405504,3177.6,3175.1,0.005]
[1763391205652,0.405504,3177.3,3175.1,0.005]
[1763391205877,1.31249664,3176.8,3175.1,0.005]
[1763391206051,0.4668,3177.2,3175.1,0.005]
[1763391206052,1.31249664,3176.2,3175.1,0.005]
[1763391206368,1.28170852,3176.7,3173.5,0.05]
[1763391206369,1.31249664,3175.6,3173.5,0.05]
[1763391206567,0.592104,3174.3,3173.5,0.05]
[1763391206920,1.77929664,3174.2,3173.1,0.005]
[1763391207121,0.405504,3174.0,3173.1,0.005]
[1763391207369,0.872304,3174.2,3173.1,0.005]
[1763391207370,0.405504,3174.2,3173.1,0.005]
[1763391207680,0.4509,3174.7,3173.1,0.005]
[1763391207978,0.405504,3174.6,3173.1,0.005]
[1763391208120,0.4509,3174.7,3173.1,0.005]
[1763391208316,0.1833,3175.5,3173.2,0.4521]
[1763391208784,0.4509,3175.8,3173.3,0.405504]
[1763391209219,0.4509,3175.8,3173.5,0.405504]
[1763391209418,0.4509,3176.4,3173.5,0.405504]
[1763391209644,0.005,3175.9,3173.6,0.4521]
[1763391210047,1.31249664,3175.5,3173.1,0.005]
[1763391210248,0.1833,3173.2,3170.9,0.4521]
[1763391210458,0.405504,3173.1,3170.9,0.4521]
[1763391210631,0.405504,3173.1,3171.6,0.4521]
[1763391210953,0.405504,3173.1,3170.9,0.4521]
[1763391210954,0.4509,3173.1,3170.9,0.4521]
[1763391211161,0.405504,3173.0,3171.1,0.4571]
[1763391211368,0.405504,3173.0,3171.1,0.005]
[1763391211582,0.405504,3173.6,3173.3,0.001]
[1763391212262,0.4509,3173.6,3173.3,0.001]
[1763391212465,0.405504,3173.5,3171.1,0.005]
[1763391212761,0.405504,3173.5,3173.0,0.001]
[1763391212965,0.405504,3173.3,3173.0,0.001]
[1763391213271,0.005,3174.9,3173.0,0.001]
[1763391213491,0.005,3174.9,3173.0,0.4531]
[1763391213797,0.4509,3174.8,3173.0,0.001]
[1763391215285,0.005,3174.9,3173.1,0.4521]
[1763391215600,0.005,3174.9,3173.2,0.405504]
[1763391215763,0.005,3174.9,3173.4,0.405504]
[1763391215967,0.005,3174.9,3173.3,0.4521]
[1763391216152,0.005,3174.9,3173.0,0.001]
[1763391216153,0.4559,3174.9,3173.0,0.001]
[1763391216503,0.405504,3174.8,3173.0,0.001]
[1763391216951,0.405504,3174.6,3173.0,0.001]
[1763391217298,0.90699264,3174.4,3173.0,0.001]
[1763391217606,3.732504,3173.9,3171.1,0.005]
[1763391217778,0.405504,3172.1,3171.1,0.005]
[1763391218093,1.50315468,3173.8,3171.1,0.005]
[1763391218094,0.405504,3173.7,3171.1,0.005]
[1763391218245,0.405504,3172.2,3171.1,0.005]
[1763391218646,0.405504,3172.0,3171.1,0.005]
[1763391218851,0.1833,3172.3,3171.1,0.005]
[1763391219065,0.1833,3172.8,3171.1,0.4571]
[1763391219290,0.1833,3173.3,3171.1,0.005]
[1763391219663,0.4509,3173.2,3171.1,0.005]
[1763391220007,0.405504,3173.0,3171.1,0.005]
[1763391220167,0.15975385,3173.0,3171.1,0.005]
[1763391220354,0.4509,3173.1,3171.2,0.6411]
[1763391220683,0.4509,3173.1,3171.3,0.4521]
[1763391220917,0.4509,3173.1,3171.1,0.005]
[1763391222316,0.405504,3173.0,3171.1,0.005]
[1763391222516,0.4509,3173.1,3171.2,0.6411]
[1763391222716,0.1833,3173.3,3171.2,0.6411]
[1763391222915,0.1833,3173.3,3171.3,0.4521]
[1763391223118,0.4509,3173.6,3171.3,0.4521]
[1763391223583,0.4509,3173.6,3171.1,0.005]
[1763391223782,0.405504,3173.2,3171.1,0.005]
[1763391224022,0.41481078,3173.1,3171.1,0.005]
[1763391224321,0.19181383,3173.0,3171.1,0.005]
[1763391224520,0.4509,3172.9,3171.1,0.005]
[1763391224818,0.405504,3172.8,3171.1,0.005]
[1763391225016,0.4509,3172.9,3171.1,0.005]
[1763391225217,0.19181383,3173.0,3171.1,0.005]
[1763391225218,0.405504,3172.7,3171.1,0.005]
[1763391225624,4.63949664,3171.9,3171.1,0.005]
[1763391225792,4.63949664,3171.7,3170.1,0.005]
[1763391225994,3.327,3171.3,3170.1,0.005]
[1763391226194,0.90699264,3171.4,3170.1,0.005]
[1763391226386,0.405504,3171.2,3170.1,0.005]
[1763391226587,0.405504,3170.8,3168.2,0.189]
[1763391226785,0.405504,3170.8,3168.3,0.4521]
[1763391226987,0.405504,3170.6,3168.1,0.005]
[1763391227503,0.4509,3170.7,3168.1,0.005]
[1763391227504,0.405504,3170.4,3169.1,0.4571]
[1763391227698,8.29374697,3172.3,3169.1,0.4571]
[1763391227699,0.4509,3171.1,3169.1,0.4571]
[1763391227932,0.4509,3171.1,3169.1,0.005]
[1763391228236,0.69530788,3171.0,3169.1,0.005]
[1763391228460,1.60230052,3171.0,3169.1,0.005]
[1763391228742,0.405504,3170.4,3169.1,0.005]
[1763391228934,0.500804,3169.2,3169.1,0.005]
[1763391229128,0.405504,3169.2,3169.1,0.005]
[1763391229435,0.405504,3170.2,3169.1,0.005]
[1763391229647,0.856404,3170.2,3169.1,0.005]
[1763391229841,0.4509,3170.2,3169.1,0.005]
[1763391230008,0.405504,3170.0,3169.1,0.005]
[1763391230208,2.00241352,3170.0,3168.1,0.005]
[1763391230404,0.4509,3170.1,3169.0,0.001]
[1763391230405,0.405504,3169.6,3169.0,0.001]
[1763391230655,0.405504,3169.6,3167.7,0.09083496]
[1763391230656,1.31249664,3168.9,3167.7,0.09083496]
[1763391230808,0.1833,3167.2,3164.3,0.189]
[1763391231008,0.405504,3167.1,3164.5,0.4521]
[1763391231248,0.90699264,3168.4,3164.3,0.189]
[1763391231430,0.24533135,3169.9,3164.3,0.189]
[1763391231431,1.09029264,3168.9,3166.2,0.4521]
[1763391231618,0.1833,3168.9,3166.2,0.4521]
[1763391231818,0.1833,3168.9,3166.3,0.189]
[1763391232019,0.1833,3170.5,3166.3,0.189]
[1763391232020,0.1833,3169.5,3168.4,0.001]
[1763391232432,0.4509,3169.4,3168.4,0.001]
[1763391233114,0.005,3169.9,3168.4,0.001]
[1763391233323,0.005,3168.9,3168.4,0.001]
[1763391233848,0.4509,3168.8,3168.4,0.001]
[1763391234159,3.327,3168.5,3164.3,0.189]
[1763391234322,0.66284203,3168.4,3165.6,0.4521]
[1763391234526,0.405504,3168.3,3165.6,0.4521]
[1763391234712,0.405504,3168.3,3164.3,0.189]
[1763391234713,0.856404,3168.3,3166.2,0.4521]
[1763391234919,0.405504,3168.2,3166.3,0.189]
[1763391235251,0.005,3168.9,3166.4,0.4521]
[1763391235612,0.005,3168.9,3166.5,0.405504]
[1763391235841,0.005,3168.9,3166.4,0.4521]
[1763391237346,0.405504,3168.8,3166.4,0.4521]
[1763391237766,0.405504,3168.6,3166.4,0.4521]
[1763391237970,0.405504,3168.2,3165.6,0.4948]
[1763391238140,0.405504,3168.2,3164.3,0.189]
[1763391238141,0.405504,3167.8,3164.9,0.4948]
[1763391238468,0.90699264,3168.4,3164.3,0.189]
[1763391238469,0.405504,3167.6,3165.6,0.4948]
[1763391238653,0.405504,3168.6,3166.2,0.4948]
[1763391238860,0.891904,3168.6,3166.2,0.4948]
[1763391239058,0.891904,3168.6,3164.3,0.189]
[1763391239059,0.891904,3168.6,3165.7,0.4948]
[1763391239366,0.405504,3168.4,3165.7,0.4948]
[1763391239580,0.405504,3168.2,3165.7,0.4948]
[1763391239728,0.69542725,3168.2,3165.7,0.4948]
[1763391239926,0.405504,3168.0,3165.7,0.4948]
[1763391240133,0.405504,3167.8,3165.4,0.4948]
[1763391240362,0.405504,3167.6,3165.3,0.4948]
[1763391240590,0.405504,3167.4,3165.3,0.4948]
[1763391240743,0.593404,3166.2,3164.5,0.4948]
[1763391240944,1.079804,3166.2,3164.3,0.189]
[1763391241146,0.1343,3165.2,3163.1,0.005]
[1763391241385,0.405504,3165.1,3163.8,0.1925]
[1763391241533,0.405504,3165.1,3164.2,0.4948]
[1763391241736,0.4406804,3166.0,3164.2,0.4948]
[1763391241737,0.4864,3166.0,3164.2,0.4948]
[1763391241955,0.90699264,3166.7,3164.2,0.4948]
[1763391242236,0.4864,3167.5,3164.2,0.4948]
[1763391242436,1.6377426,3167.9,3164.2,0.4948]
[1763391242659,0.16377426,3167.8,3164.2,0.4948]
[1763391242864,0.00218,3168.1,3164.3,0.405504]
[1763391243038,0.4856,3168.0,3164.2,0.4948]
[1763391243232,8.29374697,3167.2,3164.2,0.4948]
[1763391243457,0.4856,3168.0,3164.2,0.4948]
[1763391243458,0.8293747,3167.1,3164.2,0.4948]
[1763391243662,0.405504,3167.7,3164.2,0.4948]
[1763391244056,8.29374697,3168.3,3164.2,0.4948]
[1763391244057,0.005,3167.9,3164.2,0.4948]
[1763391244270,0.005,3166.9,3164.2,0.4948]
[1763391245294,0.005,3166.9,3166.8,0.1925]
[1763391245662,0.005,3167.9,3166.8,0.6873]
[1763391246180,0.005,3167.9,3166.9,0.4948]
[1763391247197,0.005,3169.9,3167.0,0.405504]
[1763391247504,0.005,3169.9,3169.8,0.1925]
[1763391247677,0.005,3170.9,3169.8,0.1925]
[1763391247875,0.005,3170.9,3170.8,0.1925]
[1763391248263,0.005,3171.9,3170.8,0.6873]
[1763391248667,0.005,3172.9,3170.9,0.4948]
[1763391249063,0.005,3173.9,3171.0,0.405504]
[1763391249369,0.005,3173.9,3173.8,0.1925]
[1763391249594,0.002,3174.6,3173.8,0.6873]
[1763391250060,0.002,3174.6,3173.9,0.4948]
[1763391250266,0.002,3175.3,3173.9,0.4948]
[1763391250511,0.002,3175.3,3175.2,0.1925]
[1763391250668,0.002,3175.3,3175.2,0.6873]
[1763391250867,0.002,3175.3,3174.2,0.4948]
[1763391251491,0.005,3175.9,3174.2,0.4948]
[1763391251804,0.005,3177.9,3174.3,0.405504]
[1763391251805,0.4914,3177.9,3174.3,0.405504]
[1763391252020,0.4914,3177.9,3174.4,0.4948]
[1763391252021,0.005,3177.9,3174.4,0.4948]
[1763391252313,0.4864,3177.5,3174.4,0.4948]
[1763391252821,0.005,3177.9,3174.4,0.4948]
[1763391253002,0.005,3177.9,3174.5,0.405504]
[1763391253212,0.005,3177.9,3174.4,0.4948]
[1763391253902,0.4864,3177.7,3173.1,0.405504]
[1763391254071,0.005,3177.9,3174.1,0.005]
[1763391254480,0.4914,3177.9,3174.1,0.005]
[1763391254987,0.005,3177.9,3174.1,0.005]
[1763391255778,0.005,3177.9,3174.2,0.4825]
[1763391256004,0.005,3177.9,3174.3,0.405504]
[1763391256214,0.005,3174.9,3174.5,0.405504]
[1763391256411,0.005,3174.9,3174.6,0.6698]
[1763391256590,0.005,3177.9,3174.6,0.6698]
[1763391256797,0.405504,3177.5,3174.7,0.4825]
[1763391257133,0.005,3177.9,3174.7,0.4825]
[1763391257431,0.862604,3176.8,3174.7,0.4825]
[1763391257575,0.862604,3176.8,3174.6,0.1873]
[1763391257775,0.405504,3176.6,3174.1,0.4875]
[1763391258422,0.405504,3176.4,3174.1,0.4875]
[1763391258590,0.405504,3176.4,3174.1,0.005]
[1763391258799,0.405504,3176.2,3174.1,0.005]
[1763391259134,0.1892,3176.9,3174.2,0.4825]
[1763391259284,0.005,3176.9,3174.2,0.4825]
[1763391259808,0.1892,3176.9,3174.2,0.4825]
[1763391260004,0.405504,3176.8,3174.2,0.4825]
[1763391260222,0.1892,3176.9,3174.2,0.4825]
[1763391260381,0.005,3176.9,3174.2,0.4825]
[1763391260891,0.862604,3176.8,3174.2,0.4825]
[1763391261589,0.1892,3176.9,3174.2,0.4825]
[1763391261790,0.405504,3176.6,3174.2,0.4825]
[1763391261990,0.405504,3176.4,3174.2,0.4825]
[1763391262384,0.005,3176.9,3174.2,0.4825]
[1763391262580,0.005,3176.9,3174.3,0.437007]
[1763391262788,0.005,3176.9,3174.3,0.405504]
[1763391262986,0.005,3176.9,3174.5,0.405504]
[1763391263181,0.005,3176.9,3174.4,0.4825]
[1763391263182,0.005,3176.9,3176.8,0.1873]
[1763391263396,0.005,3176.9,3174.4,0.4825]
[1763391263686,0.005,3176.9,3174.5,0.405504]
[1763391263916,0.005,3176.9,3174.7,0.405504]
[1763391264283,0.4591,3178.6,3174.2,0.90699264]
[1763391264284,0.002,3178.6,3174.9,0.405504]
[1763391264829,0.002,3178.6,3175.3,0.405504]
[1763391264986,0.002,3178.6,3175.5,0.405504]
[1763391265186,0.002,3178.6,3175.6,0.4825]
[1763391265419,0.4621,3177.9,3175.6,0.4825]
[1763391265688,0.405504,3177.8,3175.6,0.4825]
[1763391266028,0.4621,3177.9,3175.6,0.4825]
[1763391266029,0.005,3177.9,3175.6,0.4825]
[1763391266211,0.0042,3177.9,3175.6,0.4825]
[1763391266622,0.409704,3177.9,3175.6,0.4825]
[1763391266836,0.0042,3177.9,3175.6,0.4825]
[1763391267643,0.0042,3177.9,3175.7,0.405504]
[1763391267804,0.0042,3177.9,3175.6,0.4825]
[1763391268285,0.405504,3177.7,3175.6,0.4825]
[1763391268486,0.405504,3177.7,3175.1,0.005]
[1763391268689,0.4625,3177.6,3175.1,0.4875]
[1763391268924,0.405504,3177.5,3175.1,0.4875]
[1763391269135,0.602404,3177.5,3175.1,0.4875]
[1763391269291,0.405504,3177.3,3175.1,0.4875]
[1763391269749,0.4625,3177.4,3175.1,0.4875]
[1763391269924,0.405504,3177.3,3175.1,0.4875]
[1763391270226,0.405504,3177.3,3175.1,0.005]
[1763391270387,0.405504,3177.1,3175.1,0.005]
[1763391270593,0.405504,3176.9,3175.1,0.005]
[1763391270924,1.31249664,3176.7,3175.1,0.005]
[1763391271139,0.405504,3176.7,3175.1,0.005]
[1763391271307,0.405504,3176.5,3175.1,0.005]
[1763391271935,0.405504,3176.4,3175.1,0.005]
[1763391272137,0.4625,3177.2,3175.2,0.4826]
[1763391272351,0.4687,3177.9,3175.2,0.4826]
[1763391272902,6.9596335,3177.8,3175.2,0.4826]
[1763391273115,0.4687,3177.9,3175.2,0.4826]
[1763391273116,0.74283335,3177.7,3175.2,0.4826]
[1763391273329,0.0062,3177.9,3175.3,0.405504]
[1763391273539,0.0062,3177.9,3175.4,0.4826]
[1763391273741,0.90699264,3177.7,3175.4,0.4826]
[1763391274061,0.90699264,3177.7,3175.1,0.005]
[1763391274062,1.31249664,3177.1,3175.1,0.005]
[1763391274411,0.405504,3176.9,3175.2,0.4826]
[1763391274646,0.83291261,3177.6,3175.2,0.4826]
[1763391274964,0.4687,3177.9,3175.3,0.1836]
[1763391275123,0.0062,3177.9,3175.3,0.589104]
[1763391275330,0.4687,3177.9,3175.4,0.4826]
[1763391275564,0.90699264,3177.6,3175.4,0.4826]
[1763391275712,1.85156661,3177.5,3175.4,0.4826]
[1763391276239,1.19216661,3177.5,3175.4,0.4826]
[1763391276560,0.1969,3177.5,3175.4,0.4826]
[1763391276765,0.868004,3177.4,3175.4,0.4826]
[1763391277114,3.732504,3177.2,3175.3,0.1836]
[1763391277314,1.66131842,3177.3,3175.1,0.005]
[1763391277315,0.405504,3176.8,3175.1,0.005]
[1763391277526,0.405504,3176.6,3175.1,0.005]
[1763391277723,0.405504,3176.4,3175.1,0.005]
[1763391277930,0.69732978,3176.4,3175.1,0.005]
[1763391278139,0.405504,3176.2,3175.1,0.005]
[1763391278361,0.405504,3176.0,3175.1,0.005]
[1763391278615,0.405504,3175.8,3175.1,0.005]
[1763391278811,0.405504,3175.6,3175.1,0.005]
[1763391279018,10.2866335,3176.4,3175.1,0.005]
[1763391279019,0.405504,3176.6,3175.1,0.005]
[1763391279268,0.405504,3176.4,3175.1,0.005]
[1763391279465,0.405504,3176.2,3175.1,0.005]
[1763391279625,0.405504,3176.0,3175.1,0.005]
[1763391279826,0.29339637,3175.9,3175.1,0.005]
[1763391280029,0.405504,3176.5,3175.1,0.005]
[1763391280243,0.83981798,3177.9,3175.1,0.005]
[1763391280244,0.83981798,3177.9,3175.1,0.4876]
[1763391280245,0.29364645,3176.4,3175.1,0.4876]
[1763391280448,0.29360227,3176.3,3175.1,0.4876]
[1763391280618,0.29360227,3176.2,3175.1,0.005]
[1763391280816,0.405504,3176.0,3175.1,0.005]
[1763391281039,0.405504,3175.8,3175.1,0.005]
[1763391281239,0.405504,3175.6,3175.1,0.005]
[1763391281462,0.29360227,3175.5,3175.1,0.005]
[1763391281642,0.405504,3175.3,3175.1,0.005]
[1763391281996,6.9596335,3176.2,3175.1,0.005]
[1763391281997,0.29360227,3175.2,3175.1,0.005]
[1763391282144,0.90699264,3176.7,3175.1,0.005]
[1763391282145,0.29380506,3175.7,3175.1,0.005]
[1763391282339,0.2937719,3175.6,3175.1,0.005]
[1763391282560,0.4625,3176.6,3175.1,0.005]
[1763391282740,0.29377453,3176.5,3175.1,0.005]
[1763391283050,0.405504,3175.8,3175.1,0.005]
[1763391283251,0.90699264,3176.1,3175.1,0.005]
[1763391283252,0.405504,3175.6,3175.1,0.005]
[1763391283456,0.405504,3175.4,3175.1,0.005]
[1763391283666,0.29377453,3175.3,3175.1,0.005]
[1763391283866,0.69927853,3175.2,3175.1,0.005]
[1763391284468,1.16177853,3175.2,3175.1,0.005]
[1763391284978,1.16177853,3175.2,3174.1,0.006]
[1763391284979,3.732504,3175.0,3174.1,0.006]
[1763391285177,4.31121835,3175.2,3174.1,0.006]
[1763391285178,1.50939664,3174.2,3174.1,0.006]
[1763391285341,0.405504,3174.1,3173.5,0.001]
[1763391285541,0.405504,3173.9,3173.5,0.001]
[1763391285750,1.16177853,3173.9,3173.5,0.001]
[1763391286381,1.31249664,3173.5,3171.5,0.484]
[1763391286583,1.31249664,3173.5,3171.1,0.005]
[1763391286584,0.405504,3173.3,3171.1,0.005]
[1763391286886,1.31249664,3172.9,3171.1,0.005]
[1763391287185,1.50939664,3172.2,3171.1,0.005]
[1763391287344,0.29257445,3172.2,3171.4,0.0948]
[1763391287544,0.4625,3173.0,3171.1,0.005]
[1763391287545,0.405504,3172.7,3171.1,0.005]
[1763391287740,0.405504,3172.5,3171.1,0.005]
[1763391287973,0.405504,3172.3,3171.1,0.005]
[1763391288170,0.69807845,3172.3,3171.1,0.005]
[1763391288373,1.31249664,3171.8,3171.1,0.005]
[1763391288686,0.16050711,3172.4,3171.1,0.005]
[1763391288687,1.06749975,3172.4,3171.1,0.005]
[1763391288855,1.5002012,3172.3,3171.1,0.005]
[1763391289047,0.405504,3172.9,3171.2,0.484]
[1763391289251,0.29071144,3172.9,3171.2,0.484]
[1763391289447,0.405504,3173.3,3171.3,0.0948]
[1763391289684,1.31249664,3172.8,3171.3,0.0948]
[1763391289883,0.405504,3172.6,3171.3,0.0948]
[1763391290750,0.405504,3172.6,3171.1,0.005]
[1763391290751,0.868004,3172.6,3171.1,0.005]
[1763391290982,1.31249664,3172.2,3171.1,0.005]
[1763391291486,0.82721301,3172.7,3171.1,0.005]
[1763391291487,1.31249664,3171.6,3171.1,0.005]
[1763391291688,0.4625,3172.1,3171.1,0.005]
[1763391291689,0.405504,3171.4,3171.1,0.005]
[1763391292095,1.36949264,3172.0,3171.1,0.005]
[1763391292096,0.405504,3171.9,3171.1,0.005]
[1763391292294,2.19670565,3172.7,3171.1,0.005]
[1763391292453,6.9596335,3173.3,3171.1,0.489]
[1763391292760,0.005,3173.9,3171.1,0.489]
[1763391292761,7.92215753,3173.9,3171.1,0.489]
[1763391292958,2.18139839,3173.8,3171.1,0.489]
[1763391293164,0.90699264,3173.2,3171.1,0.489]
[1763391293508,2.18139839,3173.8,3171.1,0.489]
[1763391293509,0.81190575,3173.8,3171.2,0.0315338]
[1763391293658,0.005,3173.9,3171.1,0.489]
[1763391293977,0.90699264,3173.7,3171.1,0.489]
[1763391294178,0.405504,3173.6,3171.1,0.489]
[1763391294357,0.868004,3173.6,3171.1,0.489]
[1763391294555,0.405504,3173.5,3171.1,0.489]
[1763391294872,1.31249664,3173.2,3171.1,0.489]
[1763391295188,0.405504,3173.0,3171.1,0.489]
[1763391295754,0.405504,3173.0,3171.1,0.005]
[1763391295755,0.868004,3173.0,3171.1,0.005]
[1763391296161,0.4625,3173.0,3171.2,0.5788]
[1763391296329,0.82721301,3173.1,3171.2,0.5788]
[1763391296799,0.4625,3173.7,3171.2,0.5788]
[1763391296981,1.36949264,3173.7,3171.2,0.5788]
[1763391297308,1.31249664,3173.1,3171.2,0.0948]
[1763391297602,0.405504,3172.9,3171.2,0.0948]
[1763391297802,0.405504,3172.9,3171.3,0.4749]
[1763391297803,0.17180006,3172.9,3171.3,0.4749]
[1763391298006,0.405504,3173.1,3171.3,0.4749]
[1763391298567,0.405504,3173.6,3171.3,0.4749]
[1763391298907,0.405504,3173.6,3171.1,0.005]
[1763391298908,6.9596335,3172.6,3171.1,0.005]
[1763391299106,0.903604,3173.6,3171.1,0.005]
[1763391299107,0.405504,3172.5,3171.1,0.005]
[1763391299310,4.63949664,3171.9,3171.1,0.005]
[1763391299506,0.405504,3172.0,3171.1,0.005]
[1763391300306,0.405504,3171.8,3171.1,0.005]
[1763391300639,6.9596335,3172.8,3171.1,0.005]
[1763391300640,0.4981,3172.8,3171.1,0.5747]
[1763391300854,6.9596335,3173.3,3171.1,0.5747]
[1763391300995,0.69596335,3173.2,3171.1,0.5747]
[1763391301196,1.19406335,3173.2,3171.1,0.5747]
[1763391301390,0.41981078,3173.9,3171.1,0.5747]
[1763391301391,0.005,3173.9,3171.1,0.5747]
[1763391301590,0.1899,3173.9,3171.3,0.405504]
[1763391301827,1.40509264,3173.8,3171.4,0.4749]
[1763391302047,0.005,3173.9,3171.5,0.43703482]
[1763391302202,0.005,3173.9,3171.6,0.4749]
[1763391302414,0.1899,3173.9,3171.6,0.4749]
[1763391302612,0.4981,3173.8,3171.6,0.4749]
[1763391303103,0.405504,3173.6,3171.6,0.4749]
[1763391303436,0.1899,3173.9,3171.6,0.4749]
[1763391303437,0.005,3173.9,3171.6,0.4749]
[1763391303747,0.005,3173.9,3171.8,0.405504]
[1763391303903,0.005,3173.9,3173.8,0.1263]
[1763391304446,0.005,3173.9,3173.3,0.4749]
[1763391305007,0.4981,3173.8,3171.7,0.4749]
[1763391305259,0.002,3172.9,3170.0,0.0998]
[1763391305404,0.002,3172.9,3170.8,0.4749]
[1763391305604,0.405504,3172.5,3171.1,0.005]
[1763391305805,0.405504,3172.3,3171.1,0.005]
[1763391306004,0.69700767,3172.3,3171.1,0.005]
[1763391306248,1.31249664,3171.9,3171.1,0.005]
[1763391306449,6.9596335,3171.4,3171.1,0.005]
[1763391306616,0.405504,3170.7,3170.4,0.001]
[1763391306956,0.405504,3170.7,3167.0,6.9606335]
[1763391306957,0.1849,3169.2,3167.2,0.1255]
[1763391307118,0.1849,3169.2,3167.0,0.001]
[1763391307119,0.405504,3168.9,3167.0,0.001]
[1763391307334,1.31249664,3168.4,3167.0,0.001]
[1763391307642,0.405504,3167.8,3167.0,0.001]
[1763391307804,0.69700767,3168.2,3167.0,0.001]
[1763391308006,0.405504,3168.8,3167.0,0.001]
[1763391308342,0.405504,3169.0,3167.0,0.001]
[1763391308548,1.31249664,3168.5,3167.0,0.001]
[1763391308848,1.31249664,3167.9,3167.0,0.001]
[1763391309031,0.405504,3167.7,3167.0,0.001]
[1763391309436,0.4981,3167.6,3167.0,0.001]
[1763391309745,0.405504,3166.6,3166.1,0.005]
[1763391309956,1.31249664,3166.4,3166.1,0.005]
[1763391310108,1.31249664,3165.8,3165.1,0.005]
[1763391310310,0.405504,3165.1,3163.2,0.6004]
[1763391310506,0.405504,3165.1,3162.1,0.1305]
[1763391310507,0.405504,3164.5,3162.1,0.1305]
[1763391310765,0.405504,3164.5,3158.0,1.61021703]
[1763391310766,0.1849,3161.2,3158.0,1.61021703]
[1763391310914,6.9596335,3159.5,3156.4,1.59836319]
[1763391311249,1.41850935,3159.4,3157.0,0.1582]
[1763391311408,0.405504,3159.4,3157.0,0.1582]
[1763391311609,1.31249664,3158.8,3157.0,0.1582]
[1763391311923,0.4981,3159.3,3156.4,0.4749]
[1763391312233,0.1849,3160.2,3156.1,0.005]
[1763391312234,1.40509264,3160.1,3157.2,0.4749]
[1763391312541,0.405504,3159.9,3156.6,6.9596335]
[1763391312721,0.1841,3160.2,3157.3,0.7884285]
[1763391312900,0.1849,3161.2,3157.2,0.4749]
[1763391312901,6.9596335,3161.0,3157.2,0.4749]
[1763391313106,0.4981,3160.8,3157.2,0.4749]
[1763391313306,0.405504,3160.7,3157.3,0.7884285]
[1763391313507,0.005,3159.9,3157.5,6.9596335]
[1763391313735,0.005,3159.9,3157.7,0.405504]
[1763391313936,0.005,3159.9,3159.8,0.159]
[1763391314137,0.005,3160.9,3159.8,0.6339]
[1763391314637,0.005,3160.9,3159.9,0.4749]
[1763391314823,0.005,3160.9,3159.8,0.159]
[1763391315046,0.4981,3160.8,3158.4,0.4749]
[1763391315249,0.4981,3160.8,3155.9,0.05]
[1763391315250,1.31249664,3160.2,3157.8,0.4749]
[1763391315464,0.405504,3160.6,3158.5,0.4749]
[1763391315674,6.9596335,3161.5,3158.5,0.4749]
[1763391315675,0.005,3161.9,3158.5,0.4749]
[1763391315831,0.005,3161.9,3158.8,0.405504]
[1763391316164,0.005,3161.9,3160.8,0.159]
[1763391316385,0.005,3161.9,3158.9,0.4528]
[1763391316529,0.405504,3161.6,3158.9,0.4528]
[1763391317066,0.4525,3161.8,3158.9,0.4528]
[1763391317067,0.405504,3161.7,3158.9,0.4528]
[1763391317369,0.005,3161.9,3159.7,1.31249664]
[1763391317565,6.9596335,3164.2,3160.3,1.31249664]
[1763391317894,0.4525,3163.6,3159.8,0.4528]
[1763391318043,6.9596335,3162.5,3159.8,0.4528]
[1763391318365,6.9596335,3162.5,3157.0,0.05]
[1763391318366,1.31249664,3161.2,3159.0,0.4528]